bitfinex/quotes_ETHUSD_20240821
["timestamp","ask_amount","ask_price","bid_price","bid_amount"]
[1724268115662,0.758889,2635.4,2634.8,6.125]
[1724268116212,3.79464,2635.3,2634.8,6.125]
[1724268117164,0.758889,2635.4,2634.8,6.125]
[1724268117454,3.79493,2635.1,2634.8,6.125]
[1724268118352,7.5889,2635.5,2634.8,6.125]
[1724268118683,10.819355,2636.0,2634.8,6.125]
[1724268118844,3.79389,2635.9,2634.9,3.79513]
[1724268119266,4.173055,2636.0,2635.0,6.5737]
[1724268119574,3.79391,2635.8,2635.0,7.990106]
[1724268119887,3.79399,2635.8,2635.0,6.5737]
[1724268120035,3.79437,2635.5,2635.0,6.5737]
[1724268120235,3.79429,2635.6,2635.0,6.5737]
[1724268120617,3.79399,2635.8,2635.0,6.5737]
[1724268120618,3.7941,2635.7,2635.0,6.5737]
[1724268120771,0.379355,2636.0,2635.0,7.23107]
[1724268120772,3.79379,2635.9,2635.0,7.23107]
[1724268120952,3.79382,2635.9,2635.0,7.23107]
[1724268121275,3.7945,2635.4,2635.0,6.5737]
[1724268121838,3.79427,2635.6,2635.0,6.5737]
[1724268122188,11.613045,2636.0,2635.0,6.5737]
[1724268122482,3.79369,2636.0,2635.0,6.5737]
[1724268122684,3.79369,2636.0,2635.0,10.36874]
[1724268122887,3.79341,2636.2,2635.1,3.79491]
[1724268123035,3.79341,2636.2,2635.2,6.0935]
[1724268123431,3.79371,2636.0,2635.2,6.0935]
[1724268123671,7.58744,2636.0,2635.2,6.70285]
[1724268123872,3.79371,2636.0,2635.2,6.70285]
[1724268124176,3.79366,2636.0,2635.2,6.70285]
[1724268124586,3.79343,2636.2,2635.2,6.70285]
[1724268124587,3.79351,2636.1,2635.2,6.70285]
[1724268124940,4.172394,2636.4,2635.4,6.3349]
[1724268125139,3.7931,2636.4,2635.4,6.3349]
[1724268125341,3.7931,2636.4,2635.4,10.12931]
[1724268125634,3.79283,2636.6,2635.6,6.0443]
[1724268125904,3.79283,2636.6,2635.6,9.83843]
[1724268126085,3.79258,2636.8,2635.7,10.822073]
[1724268126086,7.58517,2636.8,2635.7,10.822073]
[1724268126243,3.79258,2636.8,2635.7,10.822073]
[1724268126440,3.79206,2637.1,2635.7,7.028143]
[1724268126669,3.79305,2636.4,2635.7,6.0443]
[1724268127087,7.58566,2636.6,2635.7,6.0443]
[1724268127239,3.79306,2636.4,2635.7,6.0443]
[1724268127443,0.379306,2636.3,2635.7,6.0443]
[1724268127641,3.79285,2636.6,2635.7,6.0443]
[1724268127842,3.79262,2636.7,2635.7,6.0443]
[1724268128284,3.79272,2636.7,2635.7,6.0443]
[1724268128787,3.79283,2636.6,2635.7,6.0443]
[1724268129027,3.79272,2636.7,2635.7,6.0443]
[1724268129145,4.171992,2636.7,2635.7,7.028137]
[1724268129369,0.379272,2636.7,2635.8,6.2418]
[1724268129567,7.58487,2636.9,2635.8,10.0357]
[1724268129568,3.7925,2636.8,2635.8,10.0357]
[1724268129768,3.79241,2636.9,2635.8,6.2418]
[1724268130195,3.79247,2636.8,2635.8,6.2418]
[1724268130395,3.79247,2636.8,2635.8,10.0357]
[1724268130607,3.79247,2636.8,2635.9,1.4813447]
[1724268130812,3.79232,2637.0,2636.0,6.5246]
[1724268131021,3.79232,2637.0,2636.0,10.31815]
[1724268131505,7.58457,2637.0,2636.0,6.5246]
[1724268131708,7.58457,2637.0,2636.1,1.17996347]
[1724268131709,3.79254,2636.8,2636.1,1.17996347]
[1724268131889,7.5851,2636.8,2636.1,1.17996347]
[1724268132110,3.79254,2636.8,2636.1,1.17996347]
[1724268132305,3.79226,2637.0,2636.1,1.17996347]
[1724268132512,3.79249,2636.8,2636.1,1.17996347]
[1724268132887,3.79233,2636.9,2636.1,1.17996347]
[1724268133088,3.79233,2636.9,2636.2,0.77045635]
[1724268134013,3.79248,2636.8,2636.2,0.77045635]
[1724268134198,3.79248,2636.8,2636.0,6.5246]
[1724268134393,3.79233,2636.9,2636.0,6.5246]
[1724268134596,3.79229,2637.0,2636.0,6.5246]
[1724268134801,3.79229,2637.0,2636.0,10.3182]
[1724268135212,3.79233,2636.9,2636.0,6.5246]
[1724268135416,3.79248,2636.8,2636.1,1.031827]
[1724268135635,3.79248,2636.8,2636.0,6.5246]
[1724268136038,3.79227,2637.0,2636.0,6.5246]
[1724268136186,3.7924,2636.9,2636.0,6.5246]
[1724268136393,3.79227,2637.0,2636.0,6.5246]
[1724268136612,3.79192,2637.2,2636.2,6.5539]
[1724268136813,3.79192,2637.2,2636.3,1.034726]
[1724268137214,3.79181,2637.3,2636.4,6.5539]
[1724268137459,4.0917,2637.4,2636.4,6.5539]
[1724268137937,3.79191,2637.2,2636.4,6.5539]
[1724268138118,3.79227,2637.0,2636.4,6.5539]
[1724268138634,0.3,2637.4,2636.4,6.5539]
[1724268138635,3.79188,2637.3,2636.4,6.5539]
[1724268138930,3.79193,2637.2,2636.4,6.5539]
[1724268139143,3.79207,2637.1,2636.4,6.5539]
[1724268139495,0.3,2637.4,2636.5,6.5539]
[1724268139689,3.79152,2637.5,2636.5,6.5539]
[1724268139690,3.79178,2637.3,2636.6,1.034692]
[1724268139899,3.79152,2637.5,2636.5,6.5539]
[1724268139900,3.79161,2637.4,2636.5,6.5539]
[1724268140252,3.79125,2637.7,2636.5,6.5539]
[1724268140395,7.58197,2637.9,2636.9,6.5539]
[1724268140593,7.58197,2637.9,2636.9,7.72309]
[1724268140594,5.684167,2637.9,2636.9,7.72309]
[1724268140950,1.893197,2637.9,2636.9,7.72309]
[1724268141435,3.79112,2637.8,2636.9,7.72309]
[1724268142201,3.79118,2637.7,2636.9,7.72309]
[1724268142798,3.79112,2637.8,2636.9,7.72309]
[1724268143095,3.79081,2638.0,2637.1,6.5539]
[1724268143313,3.91,2638.1,2637.1,6.5539]
[1724268143507,3.79022,2638.4,2637.2,3.79187]
[1724268143712,3.79022,2638.4,2637.3,6.5539]
[1724268143947,3.7907,2638.1,2637.4,1.034577]
[1724268144309,3.679022,2638.3,2637.3,6.5539]
[1724268144468,3.79161,2637.4,2637.3,6.5539]
[1724268145274,3.79161,2637.4,2636.8,6.4632]
[1724268145275,3.792,2637.2,2636.8,6.4632]
[1724268145436,4.550361,2637.2,2636.8,6.4632]
[1724268145756,3.79164,2637.4,2636.8,6.4632]
[1724268146116,3.79139,2637.6,2636.8,6.4632]
[1724268146915,10.44,2637.8,2636.8,6.4632]
[1724268147131,3.79199,2637.2,2636.8,6.4632]
[1724268147723,3.79168,2637.4,2636.8,6.4632]
[1724268147930,3.79165,2637.4,2636.8,6.4632]
[1724268148135,3.79179,2637.3,2636.8,6.4632]
[1724268148483,0.379179,2637.2,2636.8,6.4632]
[1724268148643,7.83521,2637.7,2636.8,6.4632]
[1724268148845,3.79134,2637.6,2636.8,6.4632]
[1724268149043,6.79146,2637.5,2636.8,6.4632]
[1724268149354,3.79095,2637.9,2636.8,6.4632]
[1724268149681,3.79067,2638.1,2636.8,6.4632]
[1724268149682,3.79083,2638.0,2637.0,6.0403]
[1724268149863,3.7909,2637.9,2637.1,0.983254]
[1724268150046,3.79113,2637.8,2637.1,0.983254]
[1724268150231,3.7909,2637.9,2637.0,6.0403]
[1724268151256,3.79068,2638.1,2637.1,6.5557]
[1724268151461,3.79068,2638.1,2637.3,6.5557]
[1724268151624,3.79046,2638.2,2637.3,6.5557]
[1724268151828,6.79063,2638.1,2637.3,6.5557]
[1724268152148,7.8375952,2638.1,2637.3,6.5557]
[1724268152939,6.79063,2638.1,2637.3,6.5557]
[1724268153154,3.79006,2638.5,2637.3,3.79172]
[1724268153355,3.79006,2638.5,2637.4,7.0357]
[1724268153537,3.79006,2638.5,2637.5,6.4857]
[1724268153538,3.79017,2638.4,2637.5,6.4857]
[1724268153739,3.79017,2638.4,2637.6,1.082728]
[1724268154431,3.79006,2638.5,2637.6,1.082728]
[1724268154775,3.79074,2638.1,2637.5,6.4857]
[1724268155078,7.58201,2637.9,2637.5,6.4857]
[1724268155371,3.79076,2638.0,2637.5,6.4857]
[1724268155609,3.79048,2638.2,2637.5,6.4857]
[1724268155795,6.79025,2638.4,2637.5,6.4857]
[1724268155933,3.78995,2638.6,2637.5,6.4857]
[1724268156135,3.78995,2638.6,2637.6,6.4857]
[1724268156348,3.78966,2638.8,2637.8,6.6686]
[1724268156349,3.78976,2638.7,2637.8,6.6686]
[1724268156550,7.44,2639.0,2637.8,6.6686]
[1724268156750,3.7914,2637.6,2637.4,6.6686]
[1724268157050,3.79164,2637.4,2637.0,6.6686]
[1724268157263,3.7914,2637.6,2637.0,6.6686]
[1724268157435,4.17054,2637.6,2637.0,6.6686]
[1724268158277,3.79148,2637.5,2637.0,6.6686]
[1724268158444,3.79207,2637.1,2636.3,6.3467]
[1724268159141,3.0,2637.3,2635.4,5.9231716]
[1724268159421,3.79319,2636.3,2635.5,6.4303]
[1724268160593,3.79292,2636.5,2635.5,6.4303]
[1724268160904,6.79264,2636.7,2635.6,6.05]
[1724268160905,3.0,2636.7,2635.6,6.05]
[1724268161093,3.79292,2636.5,2635.6,6.84255645]
[1724268161292,3.0,2636.7,2635.6,6.05]
[1724268161496,3.79346,2636.2,2635.6,6.05]
[1724268161788,3.79285,2636.6,2635.4,0.7851716]
[1724268162022,3.79376,2636.0,2635.3,6.2621]
[1724268164014,6.79301,2636.5,2635.3,6.2621]
[1724268164362,3.0,2636.5,2635.5,10.30999]
[1724268164647,3.79276,2636.6,2635.6,1.410446]
[1724268164830,3.79303,2636.5,2635.6,1.410446]
[1724268165164,3.79276,2636.6,2635.6,1.410446]
[1724268165450,3.79296,2636.5,2635.7,6.162]
[1724268165633,3.79306,2636.4,2635.7,6.162]
[1724268165801,3.7928,2636.6,2635.7,6.162]
[1724268165802,3.7932,2636.3,2635.7,6.162]
[1724268166007,3.79309,2636.4,2635.7,6.162]
[1724268166446,3.79331,2636.3,2635.7,6.162]
[1724268166647,3.79352,2636.1,2635.7,6.162]
[1724268166853,3.79364,2636.0,2635.3,6.5838]
[1724268167064,3.79352,2636.1,2635.3,6.5838]
[1724268167448,3.79322,2636.3,2635.3,6.5838]
[1724268167646,3.79334,2636.2,2635.3,6.5838]
[1724268167858,3.79334,2636.2,2635.4,0.65838]
[1724268168349,3.79371,2636.0,2635.3,6.5838]
[1724268168560,3.794,2635.8,2635.3,6.5838]
[1724268169064,3.79351,2636.1,2635.3,6.5838]
[1724268169270,3.0,2636.0,2635.3,6.5838]
[1724268170492,3.79415,2635.7,2635.3,6.5838]
[1724268170690,4.173615,2635.6,2635.3,6.5838]
[1724268171032,3.79436,2635.5,2634.7,6.27]
[1724268171226,7.58912,2635.4,2634.7,6.27]
[1724268171572,3.7948,2635.2,2634.7,6.27]
[1724268172319,4.5913635,2635.4,2634.7,6.27]
[1724268172561,3.79467,2635.3,2634.7,6.27]
[1724268172974,4.5913635,2635.4,2634.7,6.27]
[1724268173177,7.173685,2635.6,2634.7,6.27]
[1724268173345,7.173685,2635.6,2634.7,7.276578]
[1724268173758,3.79457,2635.4,2634.7,7.276578]
[1724268174073,3.79464,2635.3,2634.7,7.276578]
[1724268174238,3.79464,2635.3,2634.7,6.27]
[1724268174578,3.79449,2635.4,2634.7,6.27]
[1724268174726,3.79466,2635.3,2634.7,6.27]
[1724268174925,3.79497,2635.1,2634.7,6.27]
[1724268175257,4.174126,2635.3,2634.7,6.27]
[1724268175258,3.7948,2635.2,2634.7,6.27]
[1724268175422,3.79466,2635.3,2634.7,6.27]
[1724268175624,7.58941,2635.3,2634.7,6.27]
[1724268175824,3.79466,2635.3,2634.7,6.27]
[1724268176029,3.79492,2635.1,2634.7,6.27]
[1724268176346,3.79535,2634.8,2634.7,6.27]
[1724268176559,7.59026,2635.0,2634.7,6.27]
[1724268176741,3.79509,2635.0,2634.7,6.27]
[1724268177684,3.79509,2635.0,2634.0,6.5293]
[1724268177829,3.79509,2635.0,2634.1,6.5293]
[1724268178028,3.79509,2635.0,2634.2,1.032577]
[1724268178572,3.79502,2635.1,2634.2,1.032577]
[1724268179073,3.0,2635.3,2634.3,6.5293]
[1724268179241,3.0,2635.3,2634.3,10.32527]
[1724268179580,3.79427,2635.6,2634.5,6.5293]
[1724268179725,3.0,2635.7,2634.5,6.5293]
[1724268179929,3.0,2635.7,2634.6,0.55]
[1724268180173,3.79428,2635.6,2634.6,4.34564]
[1724268180337,6.79448,2635.5,2634.7,1.087494]
[1724268180546,3.79448,2635.5,2634.7,1.087494]
[1724268180730,3.79381,2635.9,2634.8,10.20246]
[1724268181168,11.23356,2636.1,2634.9,6.4072]
[1724268181375,3.79328,2636.3,2635.3,6.4072]
[1724268181552,7.44,2636.6,2635.4,0.55]
[1724268181750,7.44,2636.6,2635.4,0.64072]
[1724268181751,1.123268,2636.5,2635.4,0.64072]
[1724268182032,7.58772,2635.9,2635.3,6.4072]
[1724268182192,3.79386,2635.9,2635.3,6.4072]
[1724268182684,4.916268,2636.5,2635.3,6.4072]
[1724268182901,3.793,2636.5,2635.5,6.1648]
[1724268183075,3.79306,2636.4,2635.5,6.1648]
[1724268183239,7.44,2636.6,2635.6,6.1648]
[1724268183689,3.79292,2636.5,2635.6,6.1648]
[1724268183845,3.79292,2636.5,2635.7,0.61648]
[1724268184042,3.79292,2636.5,2635.6,6.1648]
[1724268185137,7.44,2636.6,2635.7,3.79396]
[1724268185449,7.44,2636.6,2635.4,2.083997]
[1724268185450,11.23277,2636.6,2635.8,6.2691]
[1724268186485,7.44,2636.6,2635.8,6.2691]
[1724268186861,3.7931,2636.4,2635.8,6.2691]
[1724268187044,5.295686,2636.4,2635.8,6.2691]
[1724268187249,11.23281,2636.6,2635.8,6.2691]
[1724268187766,3.793,2636.5,2635.8,6.2691]
[1724268188173,15.02571,2636.6,2635.8,6.2691]
[1724268188355,11.23281,2636.6,2635.8,6.2691]
[1724268188558,3.79314,2636.4,2635.8,6.2691]
[1724268189163,11.23283,2636.6,2635.8,6.2691]
[1724268189379,3.79306,2636.4,2635.8,6.2691]
[1724268189616,7.58621,2636.4,2635.8,6.2691]
[1724268189796,3.79334,2636.2,2635.0,6.1156]
[1724268189999,3.0,2636.3,2635.3,6.1156]
[1724268190202,1.123283,2636.5,2635.6,6.1156]
[1724268190203,4.123283,2636.5,2635.6,6.1156]
[1724268190400,3.79318,2636.4,2635.6,6.1156]
[1724268190725,3.79343,2636.2,2635.6,6.1156]
[1724268191025,3.79349,2636.1,2635.6,6.1156]
[1724268191196,6.79319,2636.3,2635.6,6.1156]
[1724268191526,3.79357,2636.1,2635.6,6.1156]
[1724268192176,4.916283,2636.5,2635.6,6.1156]
[1724268192381,3.79299,2636.5,2635.6,6.1156]
[1724268193382,7.44,2636.6,2635.6,6.1156]
[1724268193655,7.44,2636.6,2635.6,9.90978]
[1724268193859,3.79299,2636.5,2635.6,6.1156]
[1724268194011,3.79321,2636.3,2635.6,6.1156]
[1724268194359,4.551828,2636.3,2635.6,6.1156]
[1724268194711,3.79312,2636.4,2635.6,6.1156]
[1724268194912,3.79319,2636.3,2635.6,6.1156]
[1724268195113,3.79297,2636.5,2635.6,6.1156]
[1724268195411,7.44,2636.6,2635.6,9.90971]
[1724268195635,7.44,2636.6,2635.7,6.7014]
[1724268195856,7.44,2636.6,2635.8,6.82154]
[1724268196648,11.2328,2636.6,2635.8,6.82154]
[1724268196855,3.7929,2636.5,2635.8,6.1514]
[1724268197358,15.02566,2636.6,2635.8,6.1514]
[1724268197526,15.02569,2636.6,2635.8,6.1514]
[1724268197727,11.2328,2636.6,2635.8,7.145958]
[1724268198035,3.7932,2636.3,2635.8,6.1514]
[1724268198209,3.79305,2636.4,2635.8,6.1514]
[1724268198407,3.79343,2636.2,2635.8,6.1514]
[1724268198628,3.79343,2636.2,2635.0,8.97497]
[1724268198629,0.379343,2636.1,2635.0,8.97497]
[1724268198810,0.379343,2636.1,2634.9,1.1289954]
[1724268198811,3.794,2635.8,2635.1,6.052]
[1724268199036,0.379343,2636.1,2635.1,6.052]
[1724268199037,3.79423,2635.6,2635.1,6.052]
[1724268199235,3.79423,2635.6,2633.8,0.79146728]
[1724268199236,3.79487,2635.2,2634.3,6.052]
[1724268199426,11.23423,2635.6,2634.5,3.79565]
[1724268199657,11.23423,2635.6,2634.2,5.18]
[1724268199658,3.79458,2635.4,2634.6,6.052]
[1724268199831,4.174178,2635.3,2634.6,6.052]
[1724268200049,0.379458,2635.3,2634.6,6.052]
[1724268200213,7.44,2635.6,2634.6,6.052]
[1724268200559,3.79471,2635.3,2634.6,6.052]
[1724268200713,3.79455,2635.4,2634.6,6.052]
[1724268200917,7.58916,2635.4,2634.6,6.052]
[1724268201157,3.0,2635.5,2634.6,6.052]
[1724268201158,1.058916,2635.3,2634.6,6.052]
[1724268202060,3.0,2635.5,2634.6,6.052]
[1724268202061,6.79444,2635.5,2634.6,6.052]
[1724268203148,3.79466,2635.3,2634.6,6.052]
[1724268205354,3.0,2635.5,2634.6,6.052]
[1724268205553,16.05388,2635.9,2634.8,6.6005]
[1724268205751,3.0,2635.8,2635.0,6.6005]
[1724268206554,6.79401,2635.8,2635.0,6.6005]
[1724268207050,3.0,2635.8,2635.0,6.6005]
[1724268207224,7.44,2636.0,2635.1,0.77497398]
[1724268207419,3.79352,2636.1,2635.2,7.1505]
[1724268208074,7.58711,2636.1,2635.2,7.1505]
[1724268208580,3.79364,2636.0,2635.2,7.1505]
[1724268209229,3.79401,2635.8,2635.2,6.6005]
[1724268213481,3.79335,2636.2,2635.2,6.6005]
[1724268213641,7.44,2636.4,2635.5,3.79426]
[1724268213826,3.79293,2636.5,2635.6,6.8094]
[1724268214225,3.79305,2636.4,2635.6,6.8094]
[1724268214425,3.7932,2636.3,2635.7,0.68094]
[1724268215677,3.79348,2636.2,2635.6,6.8094]
[1724268215872,3.79346,2636.2,2635.6,6.2594]
[1724268216091,7.58688,2636.2,2635.6,6.88534]
[1724268216261,3.79342,2636.2,2635.6,6.2594]
[1724268216789,3.79341,2636.2,2635.6,6.2594]
[1724268217350,7.58683,2636.2,2635.6,6.2594]
[1724268217594,3.79355,2636.1,2635.6,6.2594]
[1724268217743,3.79364,2636.0,2635.6,6.2594]
[1724268218056,3.79341,2636.2,2635.6,6.2594]
[1724268218057,3.79348,2636.1,2635.6,6.2594]
[1724268218863,3.0,2636.7,2635.8,3.885]
[1724268219156,9.09971357,2637.3,2635.9,6.5275]
[1724268219157,3.79324,2636.3,2635.9,6.5275]
[1724268219380,0.379324,2636.2,2635.9,6.5275]
[1724268219585,3.79324,2636.3,2635.9,6.5275]
[1724268219745,7.58652,2636.3,2635.9,6.5275]
[1724268219959,3.79324,2636.3,2635.9,6.5275]
[1724268220460,3.79312,2636.4,2635.9,6.5275]
[1724268220645,3.79278,2636.6,2635.9,6.5275]
[1724268220992,3.79278,2636.6,2635.9,7.18025]
[1724268221401,3.0,2636.7,2635.9,7.18025]
[1724268221760,3.79221,2637.0,2635.9,7.18025]
[1724268221978,3.79221,2637.0,2636.1,6.3376]
[1724268222181,15.024,2637.2,2636.1,6.3376]
[1724268222385,11.23197,2637.2,2636.2,7.955713]
[1724268222595,11.23197,2637.2,2636.2,11.748933]
[1724268222896,3.79167,2637.4,2636.5,6.3361]
[1724268223469,3.79186,2637.3,2636.5,6.3361]
[1724268223895,3.79186,2637.3,2636.5,7.35821]
[1724268224198,3.79191,2637.2,2636.5,7.35821]
[1724268224403,3.79167,2637.4,2636.5,7.35821]
[1724268224996,3.7919,2637.2,2636.5,7.35821]
[1724268225195,3.79204,2637.1,2636.5,6.3361]
[1724268225510,3.79233,2636.9,2636.5,6.3361]
[1724268226001,7.58475,2636.9,2636.5,6.3361]
[1724268226301,3.79233,2636.9,2636.5,6.3361]
[1724268226509,4.550774,2636.9,2636.5,6.3361]
[1724268226796,3.79256,2636.8,2636.5,6.3361]
[1724268226953,4.550774,2636.9,2636.5,6.3361]
[1724268227555,4.550774,2636.9,2636.5,6.33499125]
[1724268228170,8.343214,2636.9,2636.5,6.33499125]
[1724268228371,4.6269014,2636.8,2636.5,6.33499125]
[1724268228573,4.6269014,2636.8,2635.8,3.885]
[1724268228898,3.79258,2636.8,2635.8,7.67889]
[1724268229711,3.79255,2636.8,2635.8,3.885]
[1724268229905,3.79262,2636.7,2635.8,3.885]
[1724268230110,4.551287,2636.6,2635.8,3.885]
[1724268230262,3.79277,2636.6,2635.6,6.79406]
[1724268230587,3.79277,2636.6,2635.5,3.885]
[1724268230588,3.79277,2636.6,2635.7,0.55]
[1724268230788,3.79277,2636.6,2635.6,7.0086]
[1724268230990,0.379277,2636.5,2635.6,7.0086]
[1724268231422,4.172247,2636.5,2635.6,6.4586]
[1724268231623,3.885,2636.8,2635.6,6.4586]
[1724268231624,3.79338,2636.2,2635.6,6.4586]
[1724268232238,7.58681,2636.2,2635.6,6.4586]
[1724268232440,3.79338,2636.2,2635.6,6.4586]
[1724268232643,0.379338,2636.1,2635.6,6.4586]
[1724268233444,4.172938,2636.1,2635.6,6.4586]
[1724268233749,7.58738,2636.0,2635.6,6.4586]
[1724268233887,3.79364,2636.0,2635.6,6.4586]
[1724268234719,7.58736,2636.0,2635.6,6.4586]
[1724268234922,3.79393,2635.8,2635.0,6.6274]
[1724268236543,7.5904398,2635.9,2635.0,6.6274]
[1724268236750,3.7966698,2635.9,2635.0,6.6274]
[1724268236898,3.0,2635.9,2635.0,6.6274]
[1724268237251,7.44,2636.0,2635.2,6.3671]
[1724268237407,11.23363,2636.0,2635.2,6.3671]
[1724268238633,3.79377,2635.9,2635.2,6.3671]
[1724268239356,3.79401,2635.8,2635.2,6.3671]
[1724268240847,7.588,2635.8,2635.2,6.3671]
[1724268241057,3.79399,2635.8,2635.2,6.3671]
[1724268241200,7.588,2635.8,2635.2,6.3671]
[1724268241402,7.58798,2635.8,2635.2,6.3671]
[1724268241602,9.2031143,2635.8,2635.2,6.3671]
[1724268241826,5.4091243,2635.8,2635.2,6.3671]
[1724268242101,3.79406,2635.7,2635.2,6.3671]
[1724268242396,5.4091243,2635.8,2635.2,6.3671]
[1724268242715,3.79377,2635.9,2635.2,6.3671]
[1724268243048,3.79379,2635.9,2635.2,6.3671]
[1724268244140,3.79391,2635.8,2635.2,6.3671]
[1724268244733,11.23371,2636.0,2635.2,6.3671]
[1724268244734,7.44,2636.0,2635.2,6.3671]
[1724268244912,7.44,2636.0,2635.3,0.63671]
[1724268245140,7.44,2636.0,2635.6,6.4407]
[1724268245308,3.79283,2636.6,2635.8,6.4407]
[1724268245512,11.23252,2636.8,2635.8,10.3257]
[1724268245797,7.44,2636.8,2635.9,6.4407]
[1724268246036,7.44,2636.8,2636.0,7.429561]
[1724268246235,4.129394,2637.5,2636.3,6.0176]
[1724268246236,3.79196,2637.2,2636.3,6.0176]
[1724268246440,7.44,2637.3,2636.4,4.435]
[1724268246646,11.2318,2637.3,2636.4,4.435]
[1724268247230,7.44,2637.3,2636.4,4.435]
[1724268247433,3.79098,2637.9,2637.0,3.885]
[1724268247631,3.79098,2637.9,2637.1,6.0176]
[1724268247926,3.79061,2638.1,2637.1,6.0176]
[1724268248098,3.79099,2637.9,2637.1,6.0176]
[1724268248299,0.379099,2637.8,2637.1,6.0176]
[1724268248501,3.79132,2637.6,2637.1,6.0176]
[1724268248902,3.79105,2637.8,2637.1,6.0176]
[1724268248903,3.79119,2637.7,2637.1,6.0176]
[1724268250179,3.79133,2637.6,2637.1,6.0176]
[1724268250673,3.79119,2637.7,2637.1,6.0176]
[1724268250870,0.379119,2637.6,2637.1,6.0176]
[1724268251886,3.79156,2637.5,2637.1,6.0176]
[1724268253639,0.379119,2637.6,2636.6,6.492]
[1724268253840,3.79193,2637.2,2636.6,6.492]
[1724268254270,11.23166,2637.4,2636.6,6.492]
[1724268254500,1.123166,2637.3,2636.6,6.492]
[1724268254973,4.915026,2637.3,2636.6,6.492]
[1724268255145,3.7919,2637.2,2636.6,6.492]
[1724268256243,1.123166,2637.3,2636.6,6.492]
[1724268256845,3.79193,2637.2,2636.6,6.492]
[1724268257187,5.4066056,2637.2,2636.6,6.492]
[1724268257341,1.6146756,2637.2,2636.6,6.492]
[1724268257542,11.23166,2637.4,2636.6,6.492]
[1724268258645,3.79199,2637.2,2636.6,6.492]
[1724268259079,15.02341,2637.4,2636.6,6.492]
[1724268259263,15.02341,2637.4,2636.6,5.992]
[1724268259465,3.79176,2637.3,2636.6,5.992]
[1724268259692,1.502344,2637.2,2636.6,5.992]
[1724268261147,5.294254,2637.2,2636.6,5.992]
[1724268261548,1.502344,2637.2,2636.6,5.992]
[1724268264089,3.79221,2637.0,2636.6,5.992]
[1724268264276,5.294364,2637.2,2636.6,5.992]
[1724268264460,0.5294364,2637.1,2636.6,5.992]
[1724268265523,4.3214864,2637.1,2636.6,5.992]
[1724268265847,0.5294364,2637.1,2636.6,5.992]
[1724268266672,7.44,2637.4,2636.6,5.992]
[1724268266901,15.02333,2637.4,2636.6,5.992]
[1724268267079,11.23162,2637.4,2636.6,5.992]
[1724268267249,7.44,2637.4,2636.6,5.992]
[1724268267594,3.79226,2637.0,2636.2,6.6315]
[1724268267904,3.79254,2636.8,2636.2,6.6315]
[1724268268563,0.379226,2636.9,2636.2,6.6315]
[1724268269000,4.171566,2636.9,2636.2,6.6315]
[1724268270093,0.379226,2636.9,2636.2,6.6315]
[1724268270301,4.171616,2636.9,2636.2,6.6315]
[1724268270992,7.44,2637.1,2636.2,7.674012]
[1724268272186,3.79223,2637.0,2636.2,6.6315]
[1724268273018,7.58456,2637.0,2636.2,6.6315]
[1724268273190,5.294786,2636.9,2636.2,6.6315]
[1724268274102,3.79265,2636.7,2636.2,6.6315]
[1724268274439,3.79285,2636.6,2636.2,6.6315]
[1724268274625,3.79256,2636.8,2636.2,6.6315]
[1724268274792,0.9087446,2636.8,2636.2,6.6315]
[1724268274988,7.44,2637.1,2636.3,6.1548]
[1724268276406,7.44,2637.1,2636.4,6.4847]
[1724268277604,7.44,2637.1,2636.5,3.79289]
[1724268277850,7.44,2637.1,2636.7,6.4847]
[1724268278562,11.23211,2637.1,2636.7,6.4847]
[1724268278721,1.123211,2637.0,2636.7,6.4847]
[1724268279971,3.79211,2637.1,2636.7,6.4847]
[1724268280111,7.58425,2637.1,2636.7,6.4847]
[1724268280312,3.79211,2637.1,2636.7,6.4847]
[1724268280764,3.79211,2637.1,2636.4,6.4847]
[1724268280765,3.79234,2636.9,2636.4,6.4847]
[1724268281756,3.79208,2637.1,2636.4,6.4847]
[1724268281757,7.58425,2637.1,2636.4,6.4847]
[1724268281914,0.758425,2637.0,2636.4,6.4847]
[1724268282260,4.550705,2637.0,2636.4,6.4847]
[1724268284453,0.758425,2637.0,2636.4,6.4847]
[1724268284752,3.79208,2637.1,2636.4,6.4847]
[1724268286123,7.58425,2637.1,2636.4,6.4847]
[1724268286407,3.79208,2637.1,2636.4,6.4847]
[1724268287030,7.5842,2637.1,2636.4,6.4847]
[1724268287517,3.79208,2637.1,2636.4,6.4847]
[1724268287665,4.850473,2637.1,2636.4,6.4847]
[1724268288780,6.79186,2637.3,2636.5,7.67583]
[1724268288781,3.0,2637.3,2636.5,7.67583]
[1724268289072,11.23132,2637.7,2636.7,3.79251]
[1724268289380,11.23132,2637.7,2636.8,6.8713]
[1724268290276,11.23132,2637.7,2636.9,6.5001]
[1724268290277,7.44,2637.7,2636.9,6.5001]
[1724268290443,7.44,2637.7,2637.1,10.3831]
[1724268290768,16.05078,2638.0,2637.1,10.3831]
[1724268290769,3.79078,2638.0,2637.1,10.3831]
[1724268290925,3.79078,2638.0,2637.2,0.55]
[1724268291125,7.44,2638.1,2637.2,0.55]